bitfinex/quotes_ETHUSD_20220201
["timestamp","ask_amount","ask_price","bid_price","bid_amount"]
[1643696567213,0.05456865,2733.4,2733.0,0.529]
[1643696567408,0.05456865,2733.4,2733.1,0.529]
[1643696567763,0.05400023,2733.3,2733.2,0.529]
[1643696567961,0.05400023,2733.3,2733.2,3.429]
[1643696568456,0.05400023,2733.3,2733.2,5.57554308]
[1643696568656,0.1213,2733.8,2733.3,5.25]
[1643696568856,22.09619964,2734.6,2733.3,5.25]
[1643696568857,0.75619964,2734.6,2733.4,1.85803882]
[1643696569156,0.72534314,2734.6,2733.4,0.94358882]
[1643696569358,0.01211753,2734.9,2733.4,1.85801882]
[1643696569557,0.01211753,2734.9,2733.4,2.77244882]
[1643696569759,0.01211753,2734.9,2733.5,0.3]
[1643696569958,0.01211753,2734.9,2733.8,0.91435]
[1643696569959,0.0982,2734.8,2733.8,0.91435]
[1643696570159,0.0982,2734.8,2733.9,0.529]
[1643696570359,0.03242745,2735.2,2734.1,0.6699763]
[1643696570567,0.32392039,2734.5,2734.2,0.529]
[1643696570759,22.01616162,2735.4,2734.3,0.529]
[1643696570760,0.99,2735.1,2734.3,0.529]
[1643696570960,0.01259525,2735.0,2734.0,0.529]
[1643696571813,21.34,2734.8,2734.0,0.529]
[1643696572312,0.42718811,2734.9,2734.0,0.529]
[1643696572517,0.39652653,2734.9,2733.4,2.05297916]
[1643696572717,0.39652653,2734.9,2733.5,0.529]
[1643696572718,21.34,2734.8,2733.5,0.529]
[1643696572925,21.3387335,2734.8,2733.5,0.529]
[1643696573121,0.0334,2734.7,2733.5,0.529]
[1643696573318,0.03341,2734.8,2733.5,0.529]
[1643696573719,21.37341,2734.8,2733.5,0.529]
[1643696573917,2.7784386,2734.7,2733.5,0.529]
[1643696574119,21.40850089,2734.8,2733.5,0.529]
[1643696574120,0.03341,2734.6,2733.5,0.529]
[1643696574320,0.94728203,2734.0,2733.1,0.7117]
[1643696574520,0.03341,2733.9,2732.8,0.7119]
[1643696575021,0.44685147,2733.7,2732.8,0.7119]
[1643696575269,0.03341,2733.6,2732.4,1.6266]
[1643696575461,0.03341,2733.6,2732.4,2.51906372]
[1643696575664,0.03341,2733.9,2732.4,2.51906372]
[1643696575861,0.03341,2733.9,2732.5,2.21753735]
[1643696576061,0.03341,2733.9,2732.6,0.1829]
[1643696576562,21.65959238,2733.3,2732.6,0.1829]
[1643696576762,21.65959238,2733.3,2732.5,0.1829]
[1643696576961,0.03341,2733.9,2732.5,2.35822615]
[1643696577164,0.03341,2733.9,2732.5,4.18751615]
[1643696577562,0.03341,2733.9,2732.6,0.529]
[1643696577762,0.03341,2733.9,2732.7,2.31983391]
[1643696577963,0.35779743,2733.7,2732.8,0.529]
[1643696578168,0.35779743,2733.7,2732.9,0.1829]
[1643696579802,0.35779743,2733.7,2732.8,0.1829]
[1643696580204,21.37341,2733.9,2732.8,0.1829]
[1643696581204,21.72738973,2733.9,2732.7,3.21946254]
[1643696582514,0.35286301,2733.0,2731.8,2.61396978]
[1643696582770,0.35286301,2733.0,2731.3,7.3170771]
[1643696582771,0.41405406,2732.0,2731.3,7.3170771]
[1643696582969,0.41405406,2732.0,2731.0,7.41758]
[1643696583166,0.37595909,2731.1,2731.0,0.1]
[1643696583372,2.76487916,2731.9,2731.0,0.1]
[1643696583373,0.529,2731.5,2731.0,0.1]
[1643696583579,0.1829,2731.4,2731.0,0.1]
[1643696583765,0.529,2731.3,2731.0,0.1]
[1643696583966,0.1829,2731.4,2731.0,0.1]
[1643696583967,0.01297367,2731.4,2731.0,0.1]
[1643696584164,0.529,2731.3,2731.0,0.1]
[1643696584364,0.18288,2731.1,2731.0,0.1]
[1643696584616,0.71188,2731.1,2731.0,0.1]
[1643696584864,0.71188,2731.1,2731.0,0.0001]
[1643696585063,0.529,2731.1,2731.0,0.0001]
[1643696585265,0.71188,2731.1,2731.0,0.0001]
[1643696585465,22.05188,2731.1,2731.0,0.0001]
[1643696585667,0.712,2731.1,2731.0,0.0001]
[1643696585876,0.529,2731.4,2731.0,0.0001]
[1643696586066,0.529,2731.8,2731.0,0.0001]
[1643696586267,0.7119,2731.8,2731.0,0.0001]
[1643696586707,0.69585425,2731.3,2731.0,0.0001]
[1643696586907,0.7119,2731.8,2731.0,0.0001]
[1643696587307,0.18288,2731.7,2731.0,0.0001]
[1643696587507,0.1829,2731.6,2731.0,0.0001]
[1643696590018,0.36578,2731.7,2731.0,0.0001]
[1643696592565,2.52485751,2731.7,2731.0,0.0001]
[1643696592762,0.36578,2731.7,2731.0,0.0001]
[1643696592969,21.34,2731.6,2731.0,0.0001]
[1643696593365,2.1300531,2731.5,2731.0,0.0001]
[1643696594854,0.01274396,2731.1,2729.8,0.1829]
[1643696595035,21.34,2730.9,2729.8,0.1829]
[1643696595229,21.34,2730.7,2729.5,0.1831]
[1643696595428,0.529,2730.6,2729.5,0.1831]
[1643696595628,0.199,2730.6,2729.4,0.1831]
[1643696596045,0.83305472,2730.3,2729.4,0.1831]
[1643696598059,0.86001908,2729.8,2729.4,0.1831]
[1643696598658,0.86001908,2729.8,2729.2,0.1831]
[1643696603113,0.1831,2730.3,2729.2,0.1831]
[1643696603311,0.18288,2730.9,2729.2,0.1831]
[1643696603312,0.529,2730.6,2729.2,0.1831]
[1643696603512,0.1831,2730.5,2729.2,0.1831]
[1643696604313,0.86352258,2730.1,2729.2,0.1831]
[1643696604516,0.86352258,2730.1,2729.3,0.18294]
[1643696604713,0.86352258,2730.1,2729.4,0.1831]
[1643696606357,0.86352258,2730.1,2729.2,0.4831]
[1643696607360,0.86352258,2730.1,2729.3,0.18294]
[1643696608269,0.1831,2730.4,2729.5,1.21563]
[1643696608468,1.1391797,2731.3,2729.6,0.37243317]
[1643696608469,0.1831,2731.1,2729.6,0.37243317]
[1643696608667,0.1831,2731.1,2729.6,1.46153317]
[1643696608866,0.1831,2731.1,2729.6,1.76153317]
[1643696609129,0.73602496,2730.3,2729.6,1.2722]
[1643696609331,0.73602496,2730.3,2729.5,0.6]
[1643696609730,0.73602496,2730.3,2729.5,0.3]
[1643696610236,0.73602496,2730.3,2729.4,0.67875806]
[1643696610837,0.73602496,2730.3,2729.5,0.3]
[1643696611032,0.74242014,2729.8,2729.4,0.36604]
[1643696611233,0.74242014,2729.8,2729.0,14.11714757]
[1643696611234,0.74242014,2729.8,2729.1,0.1831]
[1643696612866,0.74242014,2729.8,2728.8,0.01247814]
[1643696613064,0.1831,2729.7,2728.8,0.01247814]
[1643696614267,0.1831,2729.7,2728.8,0.92841994]
[1643696614469,0.75726558,2729.3,2728.8,0.92841994]
[1643696614667,0.75726558,2729.3,2728.8,0.9159418]
[1643696615571,0.1832,2730.0,2728.8,0.9159418]
[1643696616369,2.25239879,2730.0,2728.8,0.9159418]
[1643696616604,0.84971649,2729.8,2728.8,0.9159418]
[1643696617206,12.26793666,2730.1,2728.8,7.5159418]
[1643696617414,0.67236411,2731.7,2729.4,0.01208797]
[1643696617616,0.01230597,2732.3,2730.6,0.01298489]
[1643696617813,2.9148,2732.9,2730.7,0.58470466]
[1643696617814,0.00296285,2732.1,2730.7,0.58470466]
[1643696618016,0.00296285,2732.1,2731.4,0.01206197]
[1643696618229,0.00296285,2732.1,2731.5,0.529]
[1643696618413,1.54261753,2732.4,2731.5,0.71697528]
[1643696618614,0.34505873,2732.5,2731.5,1.31697528]
[1643696618812,0.34505873,2732.5,2731.5,3.14693388]
[1643696619211,0.34505873,2732.5,2731.6,0.9149793]
[1643696619413,0.34505873,2732.5,2731.7,0.529]
[1643696619617,0.34505873,2732.5,2731.7,0.829]
[1643696620113,0.34505873,2732.5,2731.7,1.129]
[1643696620575,0.01537522,2733.5,2731.9,0.9149816]
[1643696620771,1.54203603,2733.4,2732.5,6.608]
[1643696620968,0.00296285,2733.5,2732.6,0.529]
[1643696620969,1.54203603,2733.3,2732.6,0.529]
[1643696621165,0.1,2733.9,2732.6,1.89984]
[1643696621390,1.54179781,2733.8,2732.6,2.89984]
[1643696621570,2.29150763,2733.8,2732.6,2.89984]
[1643696621770,0.3484701,2733.6,2732.6,3.81458]
[1643696621974,1.54179781,2733.5,2732.6,3.81458]
[1643696622174,1.54179781,2733.5,2732.7,1.514695]
[1643696622370,0.74970982,2733.8,2732.8,0.529]
[1643696622572,1.5417824,2733.7,2732.8,0.529]
[1643696623771,1.5417824,2733.7,2732.8,0.3]
[1643696624028,1.5417824,2733.7,2732.3,3.65884]
[1643696624029,0.8340074,2732.7,2732.1,0.529]
[1643696624332,0.8340074,2732.7,2731.8,4.5740187]
[1643696624333,0.529,2732.7,2731.4,1.28492235]
[1643696624540,0.1829,2732.6,2731.4,3.11509825]
[1643696624731,0.317568,2731.9,2731.5,0.91509]
[1643696624932,1.03071033,2731.9,2731.1,0.25]
[1643696625133,1.03071033,2731.9,2730.9,3.6596234]
[1643696625327,0.1829,2731.8,2730.9,3.6596234]
[1643696625526,0.529,2731.7,2730.9,3.6596234]
[1643696625733,0.529,2731.7,2730.7,0.1]
[1643696625926,0.1829,2731.6,2730.7,0.1]
[1643696626127,0.7119,2731.6,2730.7,0.1]
[1643696626329,2.21412564,2731.5,2730.7,0.1]
[1643696626532,0.99,2731.3,2730.7,0.1]
[1643696626732,0.68621592,2730.9,2730.5,0.25]
[1643696626928,0.529,2730.8,2730.4,0.1829]
[1643696627130,0.7121,2730.8,2730.4,0.1829]
[1643696627334,5.4,2730.6,2729.6,0.25]
[1643696627535,0.32048235,2729.8,2729.1,0.01247202]
[1643696627767,0.529,2729.7,2729.1,0.01247202]
[1643696627972,0.529,2729.7,2729.0,0.1]
[1643696628572,0.21739774,2729.7,2729.0,0.1]
[1643696628774,0.21739774,2729.7,2729.0,1.931764]
[1643696629575,0.529,2730.0,2729.1,0.91584]
[1643696629796,0.529,2730.0,2729.4,0.915807]
[1643696629978,0.529,2730.0,2729.5,0.3]
[1643696630573,0.529,2730.0,2729.6,3.6631965]
[1643696631078,0.529,2730.4,2729.7,0.3]
[1643696631276,0.529,2730.4,2729.6,2.7473965]
[1643696631919,0.76932716,2730.2,2729.6,2.7473965]
[1643696632154,0.76932716,2730.2,2729.8,0.9157602]
[1643696633018,0.76932716,2730.2,2729.9,0.91577]
[1643696633321,0.44,2730.5,2729.9,0.91577]
[1643696633520,0.82535887,2730.5,2729.9,0.91577]
[1643696634319,0.92334077,2730.4,2729.9,0.91577]
[1643696635362,0.93980416,2730.4,2729.9,0.91577]
[1643696635561,0.93980416,2730.4,2729.8,0.9157602]
[1643696636368,3.18142069,2730.4,2729.8,0.9157602]
[1643696636665,3.10263389,2730.4,2729.8,0.9157602]
[1643696636865,3.10884786,2730.4,2729.8,0.9157602]
[1643696637066,3.11240068,2730.4,2729.8,0.9157602]
[1643696637267,0.93980416,2730.4,2729.8,0.9157602]
[1643696637465,3.10488531,2730.4,2729.8,0.9157602]
[1643696637670,0.93980416,2730.4,2729.8,0.9157602]
[1643696637875,0.6231,2730.3,2729.6,0.9159639]
[1643696638076,0.6231,2730.3,2729.3,2.7474319]
[1643696638077,0.36468293,2729.7,2729.3,2.7474319]
[1643696638271,0.44,2729.7,2729.3,2.7474319]
[1643696639135,0.72513021,2729.5,2729.2,0.9160681]
[1643696639835,0.44,2729.7,2729.2,0.9160681]
[1643696640349,0.44,2729.7,2729.2,1.2160681]
[1643696640568,2.21498972,2729.6,2729.2,6.81e-05]
[1643696640742,0.44,2729.5,2729.2,6.81e-05]
[1643696640937,0.1831,2729.4,2729.2,6.81e-05]
[1643696641140,0.44,2729.3,2729.2,6.81e-05]
[1643696646820,0.1832,2729.8,2729.2,6.81e-05]
[1643696647020,0.1829,2730.0,2729.2,6.81e-05]
[1643696647021,0.44,2729.7,2729.2,6.81e-05]
[1643696647218,0.6229,2730.0,2729.2,6.81e-05]
[1643696647418,0.5229,2730.0,2729.2,6.81e-05]
[1643696648022,0.79407264,2729.7,2729.3,0.915967]
[1643696650260,0.0829,2730.0,2729.3,0.915967]
[1643696650461,0.27639994,2730.1,2729.4,0.91587]
[1643696650766,0.27639994,2730.1,2729.6,1.8317222]
[1643696652564,0.1831,2730.6,2729.6,3.6633819]
[1643696652565,0.0829,2730.5,2729.6,3.6633819]
[1643696652767,0.0829,2730.5,2729.7,1.41167996]
[1643696652970,0.0829,2730.5,2729.8,3.66267]
[1643696653298,0.0829,2730.7,2729.8,3.66267]
[1643696653469,0.0829,2730.7,2729.8,3.96267]
[1643696653670,0.0829,2730.7,2729.9,2.0143133]
[1643696653870,0.0829,2730.7,2729.9,1.8312133]
[1643696654134,0.1831,2730.6,2729.9,1.8312133]
[1643696654434,3.09844039,2730.8,2729.9,1.8312133]
[1643696654435,0.1831,2730.7,2729.9,1.8312133]
[1643696654635,3.28154039,2730.8,2729.9,1.8312133]
[1643696655433,0.0829,2730.7,2729.9,1.8312133]
[1643696655633,0.1831,2730.6,2729.9,1.8312133]
[1643696655839,0.0829,2730.7,2729.9,1.8312133]
[1643696656636,0.0829,2730.7,2730.0,1.8315349]
[1643696658476,1.06846083,2730.8,2730.0,1.8315349]
[1643696658772,0.88536083,2730.8,2730.0,1.8315349]
[1643696658970,0.96826083,2730.8,2730.0,1.8315349]
[1643696659573,0.6231,2730.9,2730.0,1.8315349]
[1643696659774,0.44,2730.9,2730.2,0.9157088]
[1643696660575,0.44,2730.9,2730.2,0.74138889]
[1643696660983,0.94298808,2730.8,2730.2,0.74138889]
[1643696661179,0.44,2730.9,2730.2,0.74138889]
[1643696663027,0.0829,2730.8,2730.2,0.74138889]
[1643696664027,0.89651116,2730.7,2730.2,0.74138889]
[1643696665472,0.0829,2730.8,2730.2,0.74138889]
[1643696666098,0.44,2730.9,2730.2,0.74138889]
[1643696667978,0.5229,2730.9,2730.2,0.74138889]
[1643696668280,2.6675293,2730.9,2730.2,0.74138889]
[1643696668680,1.54310846,2730.8,2729.8,0.1831]
[1643696668886,1.54310846,2730.8,2729.7,1.8317669]
[1643696668887,3.20792646,2730.7,2729.7,1.8317669]
[1643696669118,24.54792646,2730.7,2729.7,1.8317669]
[1643696669319,1.5431512,2730.6,2729.7,1.8317669]
[1643696669520,2.83310434,2730.5,2729.7,1.8317669]
[1643696669719,0.7274459,2730.3,2729.7,1.8317669]
[1643696669923,0.44,2730.2,2729.7,1.8317669]
[1643696670323,0.44,2730.2,2729.7,2.0148669]
[1643696674480,0.43872591,2730.2,2729.7,2.0148669]
[1643696674679,0.43872591,2730.2,2729.7,1.8317669]
[1643696676725,0.36872591,2730.2,2729.7,1.8317669]
[1643696682774,0.266,2731.0,2729.8,0.60626961]
[1643696682977,1.54301276,2730.9,2729.9,2.75485564]
[1643696683177,1.54301276,2730.9,2730.0,0.1831]
[1643696684020,1.54301276,2730.9,2730.1,1.8312156]
[1643696684221,1.54301276,2730.9,2730.1,4.28215869]
[1643696684424,1.54301276,2730.9,2730.1,2.1312156]
[1643696684822,1.54301276,2730.9,2730.1,1.2155956]
[1643696685226,1.54301276,2730.9,2730.1,0.9155956]
[1643696687627,1.54301276,2730.9,2730.2,2.14920071]
[1643696687875,1.54301276,2730.9,2730.1,0.9155956]
[1643696690075,1.54301276,2730.9,2730.3,2.746824]
[1643696691716,1.54301276,2730.9,2730.4,1.6987]
[1643696691920,0.27639994,2731.3,2730.5,0.91548]
[1643696692116,1.54289386,2731.2,2730.6,0.1829]
[1643696692319,1.54289386,2731.2,2730.5,3.25121508]
[1643696692919,1.54289386,2731.2,2730.6,0.91543]
[1643696693120,1.54289386,2731.2,2730.7,1.8308845]
[1643696693319,1.54289386,2731.2,2730.7,4.01641985]
[1643696693524,1.54289386,2731.2,2730.8,2.1308353]
[1643696693721,0.0829,2731.7,2730.8,2.1308353]
[1643696693920,1.54274564,2731.6,2730.9,0.1829]
[1643696694122,1.54274564,2731.5,2731.0,0.91529]
[1643696694321,1.54274564,2731.4,2731.0,0.91529]
[1643696694539,1.54274564,2731.3,2731.0,0.91529]
[1643696694722,0.78653712,2731.9,2731.0,0.91529]
[1643696694926,1.54259981,2731.8,2731.0,1.83057]
[1643696695122,1.72549981,2731.8,2731.0,2.7458491]
[1643696695371,1.54259981,2731.7,2731.0,2.7458491]
[1643696695589,1.54259981,2731.7,2731.0,1.8305591]
[1643696695769,1.54259981,2731.6,2731.0,0.9152791]
[1643696695970,1.54259981,2731.5,2731.0,0.9152791]
[1643696696171,1.54259981,2731.4,2731.0,0.9152791]
[1643696696372,1.54259981,2731.3,2731.0,0.9152791]
[1643696696572,1.54259981,2731.2,2731.0,0.9152791]
[1643696696773,1.54259981,2731.2,2730.4,4.2837]
[1643696696774,1.6457224,2730.9,2730.4,0.11577475]
[1643696696973,1.54259981,2730.8,2730.1,3.9116894]
[1643696697172,1.72569981,2730.7,2730.1,3.6616894]
[1643696697371,0.1831,2731.0,2730.1,3.6616894]
[1643696697576,0.1831,2731.0,2730.1,5.4928194]
[1643696697577,1.54296426,2730.9,2730.1,5.4928194]
[1643696697773,1.54296426,2730.9,2730.4,1.8313305]
[1643696697977,0.1831,2730.8,2730.4,1.8313305]
[1643696698177,1.54148488,2730.7,2730.4,1.8313305]
[1643696698378,0.527,2730.9,2730.4,1.8313305]
[1643696699220,0.1831,2731.0,2730.5,0.91559]
[1643696699417,0.527,2731.3,2730.5,0.91559]
[1643696699824,0.1829,2731.4,2730.5,0.91559]
[1643696700418,0.1829,2731.4,2730.9,1.8309269]
[1643696701422,0.1829,2731.4,2730.9,5.86816088]
[1643696701622,0.1829,2731.7,2731.1,0.91531]
[1643696701822,0.68055748,2732.0,2731.2,4.29891428]
[1643696702021,0.86345748,2732.1,2731.4,1.83043]
[1643696702220,0.1829,2732.1,2731.4,1.83043]
[1643696702419,0.1829,2732.1,2731.4,4.5759828]
[1643696702878,0.1829,2732.1,2731.5,2.17836626]
[1643696703175,0.1829,2732.1,2731.6,0.9151846]
[1643696705978,0.0829,2732.2,2731.6,0.9151846]
[1643696707019,0.0829,2732.4,2731.6,3.05913168]
[1643696707218,0.0829,2732.4,2731.8,0.9151123]
[1643696707620,0.65545748,2732.7,2731.8,0.9151123]
[1643696707824,0.65545748,2732.7,2731.8,3.08975234]
[1643696708023,0.65545748,2732.7,2731.8,3.11725767]
[1643696708227,1.54759711,2732.7,2731.8,3.11725767]
[1643696708423,1.73049711,2732.7,2731.8,3.11725767]
[1643696708625,1.73049711,2732.7,2731.8,0.9151123]
[1643696709028,1.07503963,2732.7,2731.8,0.9151123]
[1643696709224,0.89213963,2732.7,2731.8,0.9151123]
[1643696709447,0.89213963,2732.7,2731.8,1.8302423]
[1643696709624,0.89213963,2732.7,2731.8,0.9151123]
[1643696709825,0.1829,2732.9,2731.9,2.25793928]
[1643696710030,3.2243944,2733.2,2731.9,2.44083928]
[1643696710031,0.1829,2733.0,2731.9,2.44083928]
[1643696710275,3.2941,2733.2,2731.9,2.44083928]
[1643696710674,0.1829,2733.2,2731.9,2.44083928]
[1643696710886,1.03644096,2733.2,2732.1,0.915]
[1643696711075,1.03644096,2733.2,2732.1,5.12941253]
[1643696711275,1.03644096,2733.2,2732.1,4.21442763]
[1643696711478,1.03644096,2733.2,2732.1,5.12920763]
[1643696711675,1.03644096,2733.2,2732.1,2.92765]
[1643696712088,0.70479133,2732.7,2732.3,2.7447232]
[1643696712283,0.70479133,2732.7,2732.3,0.9149432]
[1643696713683,0.7099,2733.1,2732.6,0.9150207]
[1643696713886,7.44,2733.2,2732.6,0.9150207]
[1643696713887,7.5851,2733.2,2732.7,1.8297566]
[1643696714129,7.4022,2733.2,2732.7,1.8297566]
[1643696714327,0.1829,2733.6,2732.7,1.8297566]
[1643696714328,7.44,2733.5,2732.7,1.8297566]
[1643696714926,0.70221972,2733.4,2732.8,1.8297645]
[1643696715134,7.44,2733.5,2732.8,1.8297645]
[1643696716135,8.19323963,2733.5,2732.8,1.8297645]
[1643696716331,7.44,2733.5,2732.9,0.9148272]
[1643696716634,0.1829,2734.0,2732.9,7.86137318]
[1643696716834,0.1829,2734.0,2732.9,14.94974318]
[1643696717133,0.1829,2734.4,2732.9,14.94974318]
[1643696717532,0.67995262,2733.9,2733.1,1.8293]
[1643696717768,0.67995262,2733.9,2733.3,0.9145644]
[1643696717972,0.67995262,2733.9,2733.2,1.09929901]
[1643696718175,1.54165075,2733.8,2733.2,1.09929901]
[1643696719174,1.54165075,2733.8,2733.3,0.9145644]
[1643696719376,1.54165075,2733.8,2733.3,4.95112084]
[1643696719575,0.1829,2733.9,2733.3,4.95112084]
[1643696719774,0.1829,2734.3,2733.3,2.0120344]
[1643696719975,0.1827,2734.5,2733.3,1.0974644]
[1643696720175,0.1827,2734.5,2733.3,1.3974644]
[1643696720176,1.54140286,2734.4,2733.3,1.3974644]
[1643696720377,2.45180294,2734.4,2733.3,1.3974644]
[1643696720578,1.54140286,2734.3,2733.6,0.9144208]
[1643696720781,0.1827,2734.8,2733.6,2.3115208]
[1643696720980,1.5413379,2734.7,2733.6,1.0971208]
[1643696721175,1.5413379,2734.6,2733.6,1.3971208]
[1643696721383,1.5413379,2734.5,2733.6,1.3971208]
[1643696721620,1.5413379,2734.4,2733.7,2.19180801]
[1643696721817,0.90685111,2734.7,2733.7,2.19180801]
[1643696721818,0.90685111,2734.7,2733.8,1.0969821]
[1643696722026,1.54131867,2734.6,2733.9,0.91427]
[1643696722424,1.54131867,2734.6,2733.9,0.91276486]
[1643696724127,0.90685111,2734.7,2733.9,0.91276486]
[1643696724325,0.90685111,2734.7,2733.9,3.1558423]
[1643696724527,0.1827,2735.0,2733.9,3.1558423]
[1643696724726,1.54123953,2734.9,2734.2,0.9142156]
[1643696724926,0.1827,2735.2,2734.2,0.9142156]
[1643696724927,1.54123953,2734.8,2734.2,0.9142156]
[1643696725125,0.1827,2735.2,2734.2,0.9142156]
[1643696725381,1.54118182,2735.1,2734.2,0.9142156]
[1643696725681,0.61868408,2735.0,2734.2,1.8284156]
[1643696725881,0.8603549,2734.7,2734.2,0.9142156]
[1643696726685,0.99,2734.5,2734.1,1.8284312]
[1643696726886,0.99,2734.5,2733.2,0.25]
[1643696726887,4.45843859,2734.4,2733.2,0.25]
[1643696727083,4.45843859,2734.4,2733.0,6.6797]
[1643696727084,0.38865885,2733.7,2733.0,1.4249]
[1643696727283,0.38865885,2733.7,2733.0,0.2681]
[1643696727485,0.1829,2733.6,2733.0,0.2681]
[1643696727684,0.1829,2733.8,2733.0,0.2681]
[1643696727895,1.19659175,2734.7,2733.0,1.19507981]
[1643696727896,0.1829,2734.2,2733.0,1.19507981]
[1643696728084,0.88539014,2734.1,2733.2,0.91439]
[1643696728685,0.88539014,2734.1,2733.1,0.91444]
[1643696729130,2.20741644,2734.8,2733.1,0.91444]
[1643696729131,2.20741644,2734.8,2733.4,2.7430978]
[1643696729425,1.54133941,2734.7,2733.4,2.42869]
[1643696729628,2.20741644,2734.6,2733.4,2.42869]
[1643696729829,0.36837989,2734.4,2733.4,1.51436]
[1643696730231,0.91613827,2734.1,2733.4,1.51436]
[1643696730431,0.91613827,2734.1,2733.4,0.91436]
[1643696730730,1.527,2734.9,2733.4,0.91436]
[1643696730932,3.93145535,2734.8,2733.4,1.09706]
[1643696731129,1.54133891,2734.7,2733.7,0.9142893]
[1643696731429,2.36985491,2734.6,2733.7,0.9142893]
[1643696731634,0.34542885,2734.5,2733.7,0.9142893]
[1643696731831,0.69844162,2734.3,2733.7,0.9142893]
[1643696732882,0.69844162,2734.3,2733.4,1.09706]
[1643696732883,4.81950872,2734.2,2733.4,0.1827]
[1643696733089,0.99,2734.0,2732.5,3.8845]
[1643696733280,4.45884861,2733.9,2732.5,3.8845]
[1643696733481,1.54153217,2733.8,2732.5,3.8845]
[1643696733680,0.79211218,2733.3,2732.5,3.8845]
[1643696733914,0.527,2733.4,2732.6,0.1829]
[1643696734381,0.0397608,2733.4,2732.6,0.1829]
[1643696734786,0.527,2733.7,2732.6,0.1829]
[1643696734981,0.72028549,2733.7,2732.8,0.91459]
[1643696735183,0.72028549,2733.7,2732.9,0.1829]
[1643696735381,0.72028549,2733.7,2732.7,1.8415527]
[1643696735382,0.72028549,2733.7,2732.8,0.1829]
[1643696735582,1.24728549,2733.7,2732.8,0.1829]
[1643696735883,1.24728549,2733.7,2732.3,5.549]
[1643696735884,0.32948889,2733.3,2732.3,5.549]
[1643696736087,2.39031644,2733.6,2732.3,5.299]
[1643696736282,0.527,2733.2,2732.3,5.299]
[1643696736516,0.527,2733.2,2732.2,3.4296621]
[1643696736924,0.8511338,2732.8,2732.2,3.4296621]
[1643696737126,0.8511338,2732.8,2732.2,1.0978621]
[1643696737331,0.527,2732.7,2732.2,0.1829]
[1643696737526,0.527,2732.7,2731.7,1.9767129]
[1643696737527,0.43074753,2732.7,2731.7,2.1596129]
[1643696738158,0.37224948,2732.2,2731.7,2.1596129]
[1643696738331,0.37224948,2732.2,2731.7,0.1829]
[1643696739029,0.527,2732.1,2731.7,0.1829]
[1643696739431,2.54583042,2732.0,2731.7,0.1829]
[1643696739634,2.54583042,2732.0,2731.0,0.1829]
[1643696739635,0.7099,2731.9,2731.0,0.1829]
[1643696739831,2.43474206,2731.8,2730.9,0.25]
[1643696740037,2.96174206,2731.8,2730.9,0.25]
[1643696740266,2.17887179,2731.7,2730.9,0.25]
[1643696740470,0.70798995,2731.7,2730.9,0.25]
[1643696740774,2.97471126,2731.7,2730.9,0.25]
[1643696740972,2.92399968,2731.7,2730.9,0.25]
[1643696741170,0.70798995,2731.7,2730.9,0.25]
[1643696742169,0.70798995,2731.7,2730.9,1.1653816]
[1643696742372,0.70798995,2731.7,2730.9,0.9153816]
[1643696742571,2.89226802,2731.7,2731.0,0.1829]
[1643696742771,2.89226802,2731.7,2730.9,1.0982816]
[1643696742772,0.70798995,2731.7,2730.9,1.0982816]
[1643696742975,0.527,2731.8,2730.9,1.0982816]
[1643696744027,1.43158668,2731.8,2730.9,1.0982816]
[1643696744829,1.43158668,2731.8,2730.9,1.3982816]
[1643696745633,1.43158668,2731.8,2730.9,2.3135116]
[1643696746436,1.42335805,2731.8,2730.9,2.3135116]
[1643696748574,0.51877137,2731.8,2730.9,2.3135116]
[1643696748775,0.51877137,2731.8,2730.9,3.2287216]
[1643696749177,0.1829,2732.3,2731.1,0.91518]
[1643696749476,2.20900562,2732.3,2731.2,0.1829]
[1643696749683,1.13945697,2732.4,2731.2,0.1829]
[1643696750082,0.03272915,2732.0,2731.2,0.1829]
[1643696750277,0.8787765,2732.0,2731.2,0.1829]
[1643696750475,0.8787765,2732.0,2731.3,0.00413]
[1643696750877,0.8787765,2732.0,2731.2,0.183]
[1643696751280,0.8787765,2732.0,2731.0,0.183]
[1643696752525,1.0616765,2732.0,2731.0,0.183]
[1643696753128,0.1829,2732.0,2731.0,0.183]
[1643696753829,0.1829,2732.2,2731.0,0.183]
[1643696754527,0.95063683,2731.9,2731.0,0.183]
[1643696754727,1.25063683,2731.9,2731.0,0.183]
[1643696754929,1.25063683,2731.9,2730.9,0.1829]
[1643696756774,1.28433038,2731.9,2730.9,0.1829]
[1643696757189,1.25063683,2731.9,2730.9,0.1829]
[1643696758781,0.95063683,2731.9,2730.9,0.1829]
[1643696761024,0.44319634,2731.5,2730.9,0.1829]
[1643696761230,2.19412016,2731.4,2730.8,1.1594]
[1643696761428,0.44319634,2731.5,2730.7,3.792]
[1643696761429,0.97833481,2731.5,2730.7,3.792]
[1643696761626,2.19543339,2731.4,2730.7,3.792]
[1643696761825,2.19543339,2731.4,2730.5,5.1646]
[1643696762029,2.20516803,2731.4,2730.4,0.1829]
[1643696762873,0.527,2731.5,2730.4,0.1829]
[1643696765069,0.527,2731.5,2730.4,1.0983074]
[1643696765873,0.527,2731.5,2730.4,3.31684709]
[1643696767324,0.22289952,2731.7,2730.4,3.31684709]
[1643696767528,0.1829,2731.8,2730.6,0.92821754]
[1643696767734,1.151,2732.3,2731.3,0.01281527]
[1643696767735,0.1829,2732.3,2731.3,0.01281527]
[1643696767932,0.27639994,2732.4,2731.3,0.35444241]
[1643696768527,0.78829895,2732.3,2731.3,0.35444241]
[1643696769228,0.78829895,2732.3,2731.4,0.9150866]
[1643696769927,0.78829895,2732.3,2731.5,2.20169741]
[1643696770576,0.78829895,2732.3,2731.6,0.91504]
[1643696772184,0.78829895,2732.3,2731.4,0.9150866]
[1643696772584,0.78743409,2732.3,2731.4,0.9150866]
[1643696772987,0.78743409,2732.3,2731.4,1.8301966]
[1643696773190,0.78743409,2732.3,2731.4,0.91511]
[1643696773392,0.78743409,2732.3,2731.3,0.35444241]
[1643696774225,1.56443409,2732.3,2731.2,0.1829]
[1643696774425,1.56443409,2732.3,2731.0,12.1434]
[1643696774426,0.1829,2732.2,2731.0,12.1434]
[1643696774630,0.777,2732.1,2731.0,12.1434]